fUSD/lending_fUSD_20260221
["ID","MTS","AMOUNT","RATE_DAILY","PERIOD"]
[406280721,1771685447336,-299.11531604,0.0001362,2]
[406280722,1771685447345,-658.98468396,0.00043462,120]
[406280723,1771685447356,-304.5,0.00043462,120]
[406280724,1771685447367,-36.51531604,0.00043462,120]
[406280725,1771685447377,-183.74,0.00045,120]
[406280726,1771685447387,-136.24468396,0.00045,120]
[406280727,1771685447400,-1284.81531604,0.00045,120]
[406280728,1771685447409,-93.06468396,0.00045065,10]
[406280729,1771685449241,-7254.41849012,0.00045065,10]
[406280730,1771685449252,-5528.11563955,0.00045065,10]
[406280731,1771685449262,-1983.66988304,0.00045065,10]
[406280732,1771685535930,500.0,0.0001,2]
[406280733,1771685537318,500.0,0.0001,2]
[406280734,1771685537822,500.0,0.0001,2]
[406280735,1771685542051,500.0,0.0001,2]
[406280736,1771685549379,500.0,0.0001,2]
[406280737,1771685550430,500.0,0.0001,2]
[406280738,1771685550933,615.60950961,0.0001,2]
[406280739,1771685688418,178.80221492,0.00012,2]
[406280740,1771685783129,-168.75,0.000134,2]
[406280741,1771685783152,-250.0,0.00013414,2]
[406280742,1771685783175,-478.6383371,0.00013428,2]
[406280743,1771685783199,-218.17246062,0.00013428,2]
[406280744,1771685783222,-918.40121962,0.00013428,2]
[406280745,1771685783246,-250.0,0.00013482,2]
[406280746,1771685783272,-300.0,0.00013526,2]
[406280747,1771685783295,-227.30102046,0.00013527,2]
[406280748,1771685783318,-500.0,0.00013527,2]
[406280749,1771685783343,-500.0,0.00013527,2]
[406280750,1771685783368,-346.74500652,0.00013527,2]
[406280751,1771685783391,-500.0,0.00013527,2]
[406280752,1771685783415,-612.60383074,0.00013527,2]
[406280753,1771685783437,-230.05626823,0.00013527,2]
[406280754,1771685783460,-150.35941026,0.00013527,2]
[406280755,1771685783490,-500.0,0.00013527,2]
[406280756,1771685783520,-500.0,0.00013527,2]
[406280757,1771685783550,-500.0,0.00013527,2]
[406280758,1771685783580,-500.0,0.00013527,2]
[406280759,1771685783610,-500.0,0.00013527,2]
[406280760,1771685783639,-500.0,0.00013527,2]
[406280761,1771685783667,-500.0,0.00013527,2]
[406280762,1771685783695,-500.0,0.00013527,2]
[406280763,1771685783724,-500.0,0.00013527,2]
[406280764,1771685783753,-271.56743815,0.00013527,2]
[406280765,1771685783776,-150.0,0.00013527,2]
[406280766,1771685783800,-1200.0,0.00013527,2]
[406280767,1771685783822,-1000.0,0.00013528,2]
[406280768,1771685783848,-2500.0,0.00013528,2]
[406280769,1771685783877,-784727.4050083,0.00013528,2]
[406280770,1771685784255,-3568.05703524,0.00013528,2]
[406280771,1771685784405,-10000.01,0.00013528,2]
[406280772,1771685790019,-10000.01,0.00013428,2]
[406280773,1771685790163,-10000.01,0.00013428,2]
[406280774,1771685842015,500.0,0.0001,2]
[406280775,1771685842298,500.0,0.0001,2]
[406280776,1771685842498,500.0,0.0001,2]
[406280777,1771685842802,500.0,0.0001,2]
[406280778,1771685842963,500.0,0.0001,2]
[406280779,1771685843421,500.0,0.0001,2]
[406280780,1771685843512,500.0,0.0001,2]
[406280781,1771685843619,500.0,0.0001,2]
[406280782,1771685843939,500.0,0.0001,2]
[406280783,1771685843991,500.0,0.0001,2]
[406280784,1771685844078,500.0,0.0001,2]
[406280785,1771685844596,500.0,0.0001,2]
[406280786,1771685844901,870.290484,0.0001,2]
[406280787,1771685850765,500.0,0.0001,2]
[406280788,1771685850840,500.0,0.0001,2]
[406280789,1771685851144,500.0,0.0001,2]
[406280790,1771685851198,500.0,0.0001,2]
[406280791,1771685851349,500.0,0.0001,2]
[406280792,1771685851653,500.0,0.0001,2]
[406280793,1771685852121,129.719516,0.0001,2]
[406280794,1771685852157,370.280484,0.0001,2]
[406280795,1771685852551,500.0,0.0001,2]
[406280796,1771685852595,500.0,0.0001,2]
[406280797,1771685852644,500.0,0.0001,2]
[406280798,1771685854574,700.0,0.0001,2]
[406280799,1771685855062,700.0,0.0001,2]
[406280800,1771685855693,700.0,0.0001,2]
[406280801,1771685856185,700.0,0.0001,2]
[406280802,1771685856638,700.0,0.0001,2]
[406280803,1771685857128,700.0,0.0001,2]
[406280804,1771685857635,700.0,0.0001,2]
[406280805,1771685858128,700.0,0.0001,2]
[406280806,1771685858620,700.0,0.0001,2]
[406280807,1771685859186,700.0,0.0001,2]
[406280808,1771685859414,500.0,0.0001,2]
[406280809,1771685859706,700.0,0.0001,2]
[406280810,1771685859938,500.0,0.0001,2]
[406280811,1771685860285,1200.0,0.0001,2]
[406280812,1771686062364,151.0,0.0001,2]
[406280813,1771686062415,151.0,0.0001,2]
[406280814,1771686064932,572.29679991,0.0001,2]
[406280815,1771686065469,151.0,0.0001,2]
[406280816,1771686066588,381.53119994,0.0001,2]
[406280817,1771686066630,164.46005654,0.0001,2]
[406280818,1771686067981,254.35413329,0.0001,2]
[406280819,1771686069147,169.56942219,0.0001,2]
[406280820,1771686070387,151.0,0.0001,2]
[406280821,1771686071481,188.13884439,0.0001,2]
[406280823,1771686153834,500.0,0.0001,2]
[406280824,1771686154287,500.0,0.0001,2]
[406280825,1771686154759,500.0,0.0001,2]
[406280828,1771686325269,-150.0,0.00013426,2]
[406280829,1771686325299,-1045.0,0.00013426,2]
[406280830,1771686325330,-1200.0,0.00013426,2]
[406280831,1771686341250,-500.0,0.00013427,2]
[406280832,1771686341290,-500.0,0.00013427,2]
[406280833,1771686341320,-500.0,0.00013427,2]
[406280834,1771686341349,-500.0,0.00013427,2]
[406280835,1771686341382,-500.0,0.00013427,2]
[406280836,1771686341622,-260.0,0.00013427,2]
[406280837,1771686341651,-500.0,0.00013427,2]
[406280838,1771686341678,-500.0,0.00013427,2]
[406280839,1771686341706,-500.0,0.00013427,2]
[406280840,1771686346698,1480.01,0.00013122,2]
[406280841,1771686346720,5000.01,0.00013122,2]
[406280842,1771686346743,3879.21,0.00013122,2]
[406280843,1771686371811,155.511805,0.000131,2]
[406280844,1771686428245,1400.0,0.000135,4]
[406280845,1771686447904,184.55,0.00012948,2]
[406280846,1771686448029,-200.0,0.00013528,2]
[406280847,1771686511749,-330.52714209,0.00013563,2]
[406280848,1771686512491,-3429.42105291,0.00013598,2]
[406280849,1771686512566,-10000.01,0.00013598,2]
[406280850,1771686512596,-10000.01,0.00013598,2]
[406280851,1771686512641,-3749.32440297,0.00013598,2]
[406280852,1771686512674,-2501.36119406,0.00013598,2]
[406280853,1771686512943,-166.45170781,0.00013598,2]
[406280854,1771686512977,-319.09222474,0.00013598,2]
[406280855,1771686513010,-3782.06666497,0.00013598,2]
[406280856,1771686513047,-464.6434029,0.000136,2]
[406280857,1771686513109,-2800.0,0.000136,4]
[406280858,1771686513148,-500.0,0.00013662,2]
[406280859,1771686513184,-150.0,0.00013662,2]
[406280860,1771686513224,-150.0,0.00013689,2]
[406280861,1771686527259,400.0,0.000135,4]
[406280862,1771686528643,-9600.01,0.0001369,2]
[406280863,1771686528897,-10000.01,0.0001369,2]
[406280864,1771686529064,-10000.01,0.0001369,2]
[406280865,1771686529250,-10000.01,0.0001369,2]
[406280866,1771686529358,800.0,0.000136,4]
[406280867,1771686529404,-9200.01,0.0001369,2]
[406280868,1771686529518,-10000.01,0.0001369,2]
[406280869,1771686529681,-10000.01,0.0001369,2]
[406280870,1771686529836,-10000.01,0.0001369,2]
[406280871,1771686529980,-10000.01,0.0001369,2]
[406280872,1771686530346,-10000.01,0.0001369,2]
[406280873,1771686530524,-10000.01,0.0001369,2]
[406280874,1771686530663,-10000.01,0.0001369,2]
[406280875,1771686530791,-10000.01,0.0001369,2]
[406280876,1771686530912,-10000.01,0.0001369,2]
[406280877,1771686542227,-300.0,0.00013689,2]
[406280878,1771686542254,-174.0,0.00013689,2]
[406280888,1771686619507,983.87743524,0.0001349,2]
[406280889,1771686622457,4016.13256476,0.0001349,2]
[406280890,1771686622478,823.65024314,0.0001349,2]
[406280893,1771686624800,-4837.58875137,0.0001358,2]
[406280894,1771686624843,-14.56824115,0.0001358,2]
[406280895,1771686624912,-295.69601496,0.0001358,2]
[406280896,1771686631509,-262.0,0.0001358,2]
[406280897,1771686631519,-175.436765,0.00013588,2]
[406280898,1771686631530,-124.563235,0.00013588,2]
[406280899,1771686631539,-300.0,0.00013588,2]
[406280900,1771686631549,-1200.0,0.00013588,2]
[406280901,1771686631559,-1045.51171664,0.00013589,3]
[406280902,1771686631568,-34217.2397821,0.00013589,2]
[406280903,1771686631581,-397.39780557,0.00013589,2]
[406280904,1771686631590,-62387.04220852,0.0001359,2]
[406280905,1771686631602,-3794.61117166,0.0001359,2]
[406280906,1771686631613,-395.70538217,0.0001359,2]
[406280907,1771686631625,-561.36,0.0001359,2]
[406280908,1771686631636,-700.05,0.0001359,2]
[406280910,1771686631647,-1068.98181167,0.0001359,2]
[406280912,1771686631658,-461.42885743,0.0001359,2]
[406280927,1771686637552,-836.01971632,0.0001359,2]
[406280928,1771686637727,-2611.28340531,0.0001359,2]
[406280929,1771686637738,-347.32,0.0001359,2]
[406280930,1771686637752,-15713.42564278,0.0001359,2]
[406280931,1771686637763,-889.07033707,0.0001359,2]
[406280932,1771686637788,-3410233.70146707,0.0001359,2]
[406280933,1771686637797,-319.1055,0.0001359,2]
[406280934,1771686637807,-500.0,0.00013689,2]
[406280935,1771686637820,-500.0,0.00013689,2]
[406280936,1771686637830,-500.0,0.00013689,2]
[406280937,1771686637839,-500.0,0.00013689,2]
[406280938,1771686637848,-500.0,0.00013689,2]
[406280939,1771686637857,-508.964726,0.00013689,2]
[406280940,1771686637867,-251.84672578,0.00013689,2]
[406280941,1771686637876,-1116.35934099,0.00013689,2]
[406280942,1771686637885,-1116.35934099,0.00013689,2]
[406280943,1771686637895,-1116.35934099,0.00013689,2]
[406280944,1771686637904,-1116.35934099,0.00013689,2]
[406280945,1771686637913,-1116.35934099,0.00013689,2]
[406280946,1771686637925,-203.05433341,0.00013689,2]
[406280947,1771686637935,-500.18048843,0.00013689,2]
[406280948,1771686637944,-1113.66931848,0.00013689,2]
[406280949,1771686637953,-1113.66931848,0.00013689,2]
[406280950,1771686637963,-1113.66931848,0.00013689,2]
[406280951,1771686637976,-1113.66931848,0.00013689,2]
[406280952,1771686637985,-500.0,0.00013689,2]
[406280953,1771686637995,-519.7006406,0.00013689,2]
[406280954,1771686638004,-1113.66931848,0.00013689,2]
[406280955,1771686638014,-500.0,0.00013689,2]
[406280956,1771686638024,-500.0,0.00013689,2]
[406280957,1771686638034,-1113.66931848,0.00013689,2]
[406280958,1771686638050,-1113.66931848,0.00013689,2]
[406280959,1771686638061,-500.0,0.00013689,2]
[406280960,1771686638072,-500.0,0.00013689,2]
[406280961,1771686638084,-300.0,0.00013689,2]
[406280962,1771686638096,-500.0,0.00013689,2]
[406280963,1771686638108,-500.0,0.00013689,2]
[406280964,1771686638119,-402.45327352,0.00013689,2]
[406280965,1771686638130,-1109.33034711,0.00013689,2]
[406280966,1771686638142,-1109.33034711,0.00013689,2]
[406280967,1771686638153,-1109.33034711,0.00013689,2]
[406280968,1771686638166,-1109.33034711,0.00013689,2]
[406280969,1771686638178,-1109.33034711,0.00013689,2]
[406280970,1771686638187,-1109.33034711,0.00013689,2]
[406280971,1771686638197,-1109.33034711,0.00013689,2]
[406280972,1771686638208,-1109.33034711,0.00013689,2]
[406280973,1771686638219,-500.0,0.00013689,2]
[406280974,1771686638230,-500.0,0.00013689,2]
[406280975,1771686638240,-500.0,0.00013689,2]
[406280976,1771686638252,-525.0,0.00013689,2]
[406280977,1771686638263,-150.0,0.00013689,2]
[406280978,1771686638273,-300.0,0.00013689,2]
[406280979,1771686638283,-3724.8351527,0.0001369,2]
[406280980,1771686638293,-3272.35002912,0.0001369,2]
[406280981,1771686638304,-1720.14982419,0.0001369,2]
[406280982,1771686638314,-2615.81130386,0.0001369,2]
[406280983,1771686638324,-310.26425611,0.0001369,2]
[406280984,1771686638336,-500.0,0.00013698,2]
[406280985,1771686638346,-500.0,0.00013698,2]
[406280986,1771686638360,-4200.0,0.000137,5]
[406280987,1771686638371,-1200.0,0.000137,5]
[406280988,1771686638382,-500.0,0.00013717,2]
[406280989,1771686638394,-500.0,0.00013726,2]
[406280990,1771686638405,-500.0,0.00013726,2]
[406280991,1771686638416,-153.2986871,0.00013726,2]
[406280992,1771686638427,-500.0,0.00013726,2]
[406280993,1771686638438,-150.0,0.00013726,2]
[406280994,1771686638448,-150.0,0.00013726,2]
[406280995,1771686638469,-150.0,0.00013726,2]
[406280996,1771686638481,-150.0,0.00013726,2]
[406280997,1771686638492,-150.0,0.00013726,2]
[406280998,1771686638507,-611.81596152,0.00013772,2]
[406280999,1771686638516,-500.0,0.00013781,2]
[406281000,1771686638526,-500.0,0.00013781,2]
[406281001,1771686638536,-150.0,0.00013781,2]
[406281002,1771686638548,-150.0,0.00013781,2]
[406281003,1771686638562,-150.0,0.00013781,2]
[406281004,1771686638574,-500.0,0.00013781,2]
[406281005,1771686638585,-691.89589471,0.00013782,2]
[406281006,1771686638596,-1000.0,0.00013799,2]
[406281007,1771686638608,-870.3,0.000138,2]
[406281008,1771686638619,-4091.44,0.000138,2]
[406281009,1771686638630,-150.99,0.000138,2]
[406281010,1771686638642,-999.99,0.000138,2]
[406281011,1771686638653,-5403.05,0.000138,2]
[406281012,1771686638664,-5600.0,0.000138,5]
[406281013,1771686638675,-1700.0,0.000138,5]
[406281014,1771686638685,-500.0,0.00013836,2]
[406281015,1771686638695,-500.0,0.00013836,2]
[406281016,1771686638706,-200.0,0.00013836,2]
[406281017,1771686638716,-150.0,0.00013836,2]
[406281018,1771686638726,-150.0,0.00013836,2]
[406281019,1771686638736,-500.0,0.00013836,2]
[406281020,1771686638746,-389.59328754,0.0001389,2]
[406281021,1771686638767,-150.0,0.0001389,2]
[406281022,1771686638781,-150.0,0.0001389,2]
[406281023,1771686638793,-500.0,0.0001389,2]
[406281024,1771686638805,-151.0,0.00013892,2]
[406281025,1771686638815,-151.0,0.00013892,2]
[406281026,1771686638826,-151.0,0.00013892,2]
[406281027,1771686638838,-151.0,0.00013892,2]
[406281028,1771686638850,-151.0,0.00013892,2]
[406281029,1771686638868,-151.0,0.00013892,2]
[406281030,1771686638879,-151.0,0.00013892,2]
[406281031,1771686638890,-151.0,0.00013892,2]
[406281032,1771686638901,-151.0,0.00013892,2]
[406281033,1771686638918,-151.0,0.00013892,2]
[406281034,1771686638929,-151.0,0.00013892,2]
[406281035,1771686638941,-151.0,0.00013892,2]
[406281036,1771686638951,-151.0,0.00013892,2]
[406281037,1771686638961,-151.0,0.00013892,2]
[406281038,1771686638972,-151.0,0.00013892,2]
[406281039,1771686638983,-151.0,0.00013892,2]
[406281040,1771686638994,-191.79984712,0.00013892,2]
[406281041,1771686639004,-9999.99,0.00013892,2]
[406281042,1771686639014,-9999.99,0.00013892,2]
[406281043,1771686639024,-299.99,0.00013892,2]
[406281044,1771686639040,-9999.99,0.00013892,2]
[406281045,1771686639050,-4999.99,0.00013892,2]
[406281046,1771686639061,-5301.71,0.00013892,2]
[406281047,1771686639072,-2196.66,0.00013892,2]
[406281048,1771686639082,-200774.85,0.00013892,2]
[406281049,1771686639093,-150.99,0.00013892,2]
[406281050,1771686639108,-9999.99,0.00013892,2]
[406281051,1771686639121,-32855.2885,0.000139,2]
[406281052,1771686639134,-1475.1273,0.000139,2]
[406281053,1771686639145,-7100.0,0.000139,5]
[406281054,1771686639157,-2100.0,0.000139,5]
[406281055,1771686639168,-212.34238859,0.00013945,2]
[406281056,1771686639184,-500.0,0.00013945,2]
[406281057,1771686639195,-205.75182249,0.00013945,2]
[406281058,1771686639206,-500.0,0.00013963,2]
[406281059,1771686639217,-4451.1035,0.00013973,2]
[406281060,1771686639228,-500.0,0.00014,2]
[406281061,1771686639238,-500.0,0.00014,2]
[406281062,1771686639248,-500.0,0.00014,2]
[406281063,1771686639258,-500.0,0.00014,2]
[406281064,1771686639268,-500.0,0.00014,2]
[406281065,1771686639277,-500.0,0.00014,2]
[406281066,1771686639288,-500.0,0.00014,2]
[406281067,1771686639297,-500.0,0.00014,2]
[406281068,1771686639309,-500.0,0.00014,2]
[406281069,1771686639318,-500.0,0.00014,2]
[406281070,1771686639328,-500.0,0.00014,2]
[406281071,1771686639339,-500.0,0.00014,2]
[406281072,1771686639349,-501.52973822,0.00014,2]
[406281073,1771686639360,-500.0,0.00014,2]
[406281074,1771686639372,-500.0,0.00014,2]
[406281075,1771686639384,-500.0,0.00014,2]
[406281076,1771686639395,-500.0,0.00014,2]
[406281077,1771686639405,-500.0,0.00014,2]
[406281078,1771686639415,-500.0,0.00014,2]
[406281079,1771686639426,-500.0,0.00014,2]
[406281080,1771686639437,-500.0,0.00014,2]
[406281081,1771686639447,-500.0,0.00014,2]
[406281082,1771686639457,-500.0,0.00014,2]
[406281083,1771686639467,-810.0,0.00014,2]
[406281084,1771686639476,-500.0,0.00014,2]
[406281085,1771686639487,-514.27853085,0.00014,2]
[406281086,1771686639497,-500.0,0.00014,2]
[406281087,1771686639507,-500.0,0.00014,2]
[406281088,1771686639517,-483.92775601,0.00014,2]
[406281089,1771686639528,-500.0,0.00014,2]
[406281090,1771686639539,-500.0,0.00014,2]
[406281091,1771686639550,-746.81779802,0.00014,2]
[406281092,1771686639562,-322.49747918,0.00014,2]
[406281093,1771686639574,-285.78386922,0.00014,2]
[406281094,1771686639585,-202.8154755,0.00014,2]
[406281095,1771686639596,-599.99,0.00014,2]
[406281096,1771686639606,-700.0,0.00014,2]
[406281097,1771686639616,-700.0,0.00014,2]
[406281098,1771686639627,-700.0,0.00014,2]
[406281099,1771686639637,-500.0,0.00014,2]
[406281100,1771686639646,-700.0,0.00014,2]
[406281101,1771686639656,-500.0,0.00014,2]
[406281103,1771686639666,-500.0,0.00014,2]
[406281104,1771686639676,-389.72502397,0.00014,2]
[406281105,1771686639686,-500.0,0.00014,2]
[406281106,1771686639696,-173.48678662,0.00014,2]
[406281107,1771686639706,-700.0,0.00014,2]
[406281108,1771686639715,-500.0,0.00014,2]
[406281109,1771686639726,-500.0,0.00014,2]
[406281110,1771686639735,-500.0,0.00014,2]
[406281111,1771686639745,-500.0,0.00014,2]
[406281112,1771686639755,-500.0,0.00014,2]
[406281113,1771686639765,-700.0,0.00014,2]
[406281114,1771686639775,-500.0,0.00014,2]
[406281115,1771686639784,-500.0,0.00014,2]
[406281116,1771686639794,-700.0,0.00014,2]
[406281117,1771686639803,-700.0,0.00014,2]
[406281118,1771686639813,-898.50753316,0.00014,2]
[406281119,1771686639823,-500.0,0.00014,2]
[406281120,1771686639832,-392.76826941,0.00014,2]
[406281121,1771686639843,-700.0,0.00014,2]
[406281122,1771686639853,-500.0,0.00014,2]
[406281123,1771686639863,-500.0,0.00014,2]
[406281124,1771686639873,-700.0,0.00014,2]
[406281125,1771686639883,-700.0,0.00014,2]
[406281126,1771686639893,-700.0,0.00014,2]
[406281127,1771686639903,-223.41385163,0.00014,2]
[406281128,1771686639914,-700.0,0.00014,2]
[406281129,1771686639924,-557.57142107,0.00014,2]
[406281130,1771686639935,-840.1639176,0.00014,2]
[406281131,1771686639945,-500.0,0.00014,2]
[406281132,1771686639955,-500.0,0.00014,2]
[406281133,1771686639966,-168.77295823,0.00014,2]
[406281134,1771686639976,-467.59818242,0.00014,2]
[406281135,1771686639987,-500.0,0.00014,2]
[406281136,1771686639997,-500.0,0.00014,2]
[406281137,1771686640010,-500.0,0.00014,2]
[406281138,1771686640020,-500.0,0.00014,2]
[406281139,1771686640030,-187.50631963,0.00014,2]
[406281140,1771686640040,-500.0,0.00014,2]
[406281141,1771686640050,-500.0,0.00014,2]
[406281142,1771686640060,-500.0,0.00014,2]
[406281143,1771686640070,-500.0,0.00014,2]
[406281144,1771686640080,-500.0,0.00014,2]
[406281145,1771686640090,-500.0,0.00014055,2]
[406281146,1771686640100,-500.0,0.0001411,2]
[406281147,1771686640110,-500.0,0.00014164,2]
[406281148,1771686640120,-9152.8,0.00014215,2]
[406281149,1771686640130,-500.0,0.00014237,2]
[406281150,1771686640141,-454.14985718,0.00014511,2]
[406281151,1771686640152,-787.0,0.00014609,2]
[406281152,1771686640162,-151.0,0.00014634,2]
[406281153,1771686640172,-250.0,0.0001477,2]
[406281154,1771686640186,-255.0,0.00014811,2]
[406281155,1771686640196,-150.04229698,0.00014881,2]
[406281156,1771686640206,-600.0,0.00014881,2]
[406281157,1771686640220,-300.0,0.00014881,2]
[406281158,1771686640231,-500.0,0.00014881,2]
[406281159,1771686640241,-193.0,0.00014881,2]
[406281160,1771686640254,-300.0,0.00014881,2]
[406281161,1771686640264,-195.0,0.00014881,2]
[406281162,1771686640275,-212.0,0.00014893,2]
[406281163,1771686640286,-250.0,0.00014938,2]
[406281164,1771686640296,-1680.0,0.00014947,2]
[406281165,1771686640306,-393.40004605,0.00014949,2]
[406281166,1771686640316,-500.0,0.00014949,2]
[406281167,1771686640326,-156.45193805,0.00015,3]
[406281168,1771686640335,-300.0,0.00015002,2]
[406281169,1771686640345,-500.0,0.00015173,2]
[406281171,1771686640355,-488.66878926,0.00015173,2]
[406281173,1771686640366,-246.364609,0.00015173,2]
[406281174,1771686640375,-184.37223932,0.00015173,2]
[406281175,1771686640385,-501.38512914,0.00015173,2]
[406281176,1771686640395,-500.41653761,0.00015173,2]
[406281177,1771686640406,-500.13729869,0.00015173,2]
[406281178,1771686640416,-500.0,0.00015173,2]
[406281179,1771686640426,-226.19494716,0.00015173,2]
[406281180,1771686640438,-500.0,0.00015173,2]
[406281181,1771686640448,-500.0,0.00015173,2]
[406281182,1771686640458,-500.0,0.00015173,2]
[406281183,1771686640468,-500.0,0.00015173,2]
[406281184,1771686640478,-500.18684223,0.00015173,2]
[406281185,1771686640488,-500.0,0.00015173,2]
[406281186,1771686640498,-500.0,0.00015173,2]
[406281187,1771686640508,-258.08456559,0.00015173,2]
[406281188,1771686640518,-6647.08,0.00015471,2]
[406281189,1771686640529,-606.1313001,0.00015519,2]
[406281190,1771686640539,-163.189676,0.00015618,7]
[406281191,1771686640549,-150.0,0.00015659,2]
[406281192,1771686640559,-1000.0,0.00015721,2]
[406281193,1771686640799,-1000.0,0.00015721,2]
[406281194,1771686640808,-501.38955269,0.00015721,2]
[406281195,1771686640817,-501.52699276,0.00015721,2]
[406281196,1771686640827,-202.86,0.00015737,2]
[406281197,1771686640835,-2346.81250728,0.0001596,2]
[406281198,1771686640844,-518.0,0.00016,2]
[406281199,1771686640853,-433.0,0.0001603,2]
[406281200,1771686640862,-541.01,0.00016047,2]
[406281201,1771686640871,-1000.0,0.00016147,2]
[406281202,1771686640879,-1500.0,0.00016268,2]
[406281203,1771686640889,-1500.0,0.00016268,2]
[406281204,1771686640898,-2351.0,0.00016441,2]
[406281205,1771686640907,-378668.46,0.00016492,2]
[406281206,1771686640916,-150.0,0.00016512,2]
[406281207,1771686640925,-34217.23978205,0.00016618,2]
[406281208,1771686640934,-29680.12664992,0.00016632,2]
[406281209,1771686640943,-2000.0,0.00016816,2]
[406281210,1771686640952,-850.90980006,0.00016816,2]
[406281211,1771686640960,-263.0,0.000171,2]
[406281212,1771686640970,-736.0,0.00017344,2]
[406281213,1771686640979,-1000.0,0.00017364,2]
[406281214,1771686640988,-728.0,0.00017373,2]
[406281215,1771686640997,-728.0,0.00017376,2]
[406281216,1771686641005,-728.0,0.00017426,2]
[406281217,1771686641014,-728.0,0.00017479,2]
[406281218,1771686641023,-728.0,0.00017524,2]
[406281219,1771686641032,-728.0,0.00017563,2]
[406281220,1771686641040,-728.0,0.00017638,2]
[406281221,1771686641050,-168.0,0.00017715,2]
[406281222,1771686641059,-728.0,0.00017777,2]
[406281223,1771686641068,-739.87554917,0.00017808,2]
[406281224,1771686641078,-739.87554917,0.00017808,2]
[406281225,1771686641086,-800.0,0.00017808,2]
[406281226,1771686641095,-173.74378417,0.00017895,2]
[406281227,1771686641104,-160.0,0.00017898,2]
[406281228,1771686641113,-900.0,0.00017917,2]
[406281229,1771686641121,-983.87743519,0.00017986,2]
[406281230,1771686641130,-150.41557459,0.00017999,2]
[406281231,1771686641139,-728.0,0.00018048,2]
[406281232,1771686641150,-3292.0,0.00018086,2]
[406281233,1771686641159,-728.0,0.00018114,2]
[406281234,1771686641169,-728.0,0.00018125,2]
[406281235,1771686641182,-200.0,0.00018128,2]
[406281236,1771686641192,-250.0,0.0001813,2]
[406281237,1771686641201,-728.0,0.00018192,2]
[406281238,1771686641210,-728.0,0.00018208,2]
[406281239,1771686641220,-728.0,0.00018223,2]
[406281240,1771686641229,-728.0,0.00018297,2]
[406281241,1771686641240,-728.0,0.000183,2]
[406281242,1771686641249,-728.0,0.00018357,2]
[406281243,1771686641258,-728.0,0.00018371,2]
[406281244,1771686641267,-150.0,0.0001844,2]
[406281245,1771686641276,-728.0,0.00018502,2]
[406281246,1771686641285,-728.0,0.00018512,2]
[406281247,1771686641295,-161.42931334,0.0001854,2]
[406281248,1771686641304,-500.0,0.0001854,2]
[406281249,1771686641314,-500.0,0.0001854,2]
[406281250,1771686641323,-162.05016959,0.0001854,2]
[406281251,1771686641332,-294.68081623,0.0001854,2]
[406281252,1771686641341,-474.05379574,0.0001854,2]
[406281253,1771686641351,-500.0,0.0001854,2]